[Event "Early-Titled-Tuesday-Blitz-April-23-2024"]
[Site "Chess.com"]
[Date "2024.04.23"]
[Round "4"]
[White "Louis-Paulsen-Fan"]
[Black "Balla_Tamas"]
[Result "0-1"]
[WhiteElo "2340"]
[BlackElo "2545"]
[TimeControl "180+1"]
[EndTime "8:38:59 PDT"]
[Termination "Balla_Tamas won by checkmate"]

1. d4 {[%clk 0:03:00.9]} 1... d5 {[%clk 0:02:59.8]} 2. Nf3 {[%clk 0:03:01.2]}
2... Nf6 {[%clk 0:03:00.1]} 3. c4 {[%clk 0:03:01.8]} 3... e6 {[%clk 0:03:00.2]}
4. Nc3 {[%clk 0:03:02.2]} 4... c5 {[%clk 0:03:00.7]} 5. e3 {[%clk 0:03:01]} 5...
Nc6 {[%clk 0:03:00.8]} 6. cxd5 {[%clk 0:03:00.6]} 6... exd5 {[%clk 0:03:01]} 7.
Bb5 {[%clk 0:03:00.6]} 7... Bd6 {[%clk 0:03:00.5]} 8. dxc5 {[%clk 0:02:58.6]}
8... Bxc5 {[%clk 0:03:01.4]} 9. O-O {[%clk 0:02:57.3]} 9... O-O {[%clk
0:03:01.1]} 10. a3 {[%clk 0:02:56.7]} 10... Bg4 {[%clk 0:03:00.9]} 11. b4 {[%clk
0:02:55.6]} 11... Bb6 {[%clk 0:03:01.4]} 12. Be2 {[%clk 0:02:50.1]} 12... Rc8
{[%clk 0:03:00.9]} 13. Bb2 {[%clk 0:02:50.2]} 13... Re8 {[%clk 0:03:01]} 14. h3
{[%clk 0:02:45.1]} 14... Bh5 {[%clk 0:03:01.1]} 15. Na4 {[%clk 0:02:41.4]} 15...
Bc7 {[%clk 0:03:00.2]} 16. Nc5 {[%clk 0:02:32.7]} 16... b6 {[%clk 0:02:55.6]}
17. Na6 {[%clk 0:02:28.5]} 17... Bd6 {[%clk 0:02:51.7]} 18. Rc1 {[%clk
0:02:24.5]} 18... Ne4 {[%clk 0:02:51.6]} 19. Nd4 {[%clk 0:01:37.4]} 19... Nxd4
{[%clk 0:02:18.4]} 20. Bxh5 {[%clk 0:01:36.9]} 20... Rxc1 {[%clk 0:02:13.1]} 21.
Qxc1 {[%clk 0:01:30.3]} 21... Ne2+ {[%clk 0:02:12.9]} 22. Bxe2 {[%clk
0:01:29.8]} 22... Qd7 {[%clk 0:01:58.9]} 23. Bd3 {[%clk 0:01:07.9]} 23... Ng5
{[%clk 0:01:55.3]} 24. Qc3 {[%clk 0:01:03.6]} 24... Be5 {[%clk 0:01:54.4]} 25.
Qb3 {[%clk 0:01:03.9]} 25... d4 {[%clk 0:01:43.2]} 26. Bxd4 {[%clk 0:01:00.1]}
26... Bd6 {[%clk 0:01:40.2]} 27. Qc4 {[%clk 0:00:54.2]} 27... Nxh3+ {[%clk
0:01:31.6]} 28. Kh1 {[%clk 0:00:38.2]} 28... Qg4 {[%clk 0:01:26]} 29. Be5 {[%clk
0:00:28.9]} 29... Nxf2+ {[%clk 0:01:17]} 30. Rxf2 {[%clk 0:00:26.5]} 30... Qh5+
{[%clk 0:01:16.5]} 31. Kg1 {[%clk 0:00:26.1]} 31... Bxe5 {[%clk 0:01:16]} 32.
Qc6 {[%clk 0:00:16.6]} 32... Rd8 {[%clk 0:01:13.5]} 33. Bc4 {[%clk 0:00:14.2]}
33... Rd1+ {[%clk 0:01:09.1]} 34. Rf1 {[%clk 0:00:14.5]} 34... Bh2+ {[%clk
0:01:03.3]} 35. Kf2 {[%clk 0:00:14.7]} 35... Rd2+ {[%clk 0:01:03.9]} 36. Ke1
{[%clk 0:00:13.4]} 36... Qd1# {[%clk 0:01:03.6]} 0-1

[Event "Early-Titled-Tuesday-Blitz-April-23-2024"]
[Site "Chess.com"]
[Date "2024.04.23"]
[Round "4"]
[White "The_Sherman_Variation"]
[Black "alex1531"]
[Result "1-0"]
[WhiteElo "2731"]
[BlackElo "2512"]
[TimeControl "180+1"]
[EndTime "8:39:02 PDT"]
[Termination "The_Sherman_Variation won on time"]

1. d4 {[%clk 0:03:00.9]} 1... Nf6 {[%clk 0:02:59.2]} 2. c3 {[%clk 0:03:01.8]}
2... e6 {[%clk 0:02:56.4]} 3. Nf3 {[%clk 0:03:01.7]} 3... b6 {[%clk 0:02:50.2]}
4. Bf4 {[%clk 0:03:01.5]} 4... Bb7 {[%clk 0:02:50.7]} 5. Nbd2 {[%clk 0:03:01]}
5... d6 {[%clk 0:02:16.2]} 6. e3 {[%clk 0:02:57.6]} 6... Nbd7 {[%clk 0:02:16.3]}
7. Bg3 {[%clk 0:02:52.9]} 7... g6 {[%clk 0:02:16.8]} 8. Bd3 {[%clk 0:02:52.4]}
8... Bg7 {[%clk 0:02:17.4]} 9. O-O {[%clk 0:02:51.7]} 9... O-O {[%clk
0:02:17.7]} 10. e4 {[%clk 0:02:51.1]} 10... Nh5 {[%clk 0:02:13]} 11. Re1 {[%clk
0:02:44.9]} 11... Nxg3 {[%clk 0:02:11.9]} 12. hxg3 {[%clk 0:02:45.8]} 12... e5
{[%clk 0:02:10.2]} 13. Nf1 {[%clk 0:02:41.1]} 13... Re8 {[%clk 0:02:01.9]} 14.
Qc2 {[%clk 0:02:31.5]} 14... Qe7 {[%clk 0:01:54.3]} 15. Ne3 {[%clk 0:02:24.5]}
15... exd4 {[%clk 0:01:36.6]} 16. cxd4 {[%clk 0:02:25.4]} 16... Nf6 {[%clk
0:01:31.8]} 17. e5 {[%clk 0:02:20.5]} 17... Nd5 {[%clk 0:01:25.7]} 18. Bc4
{[%clk 0:02:13.7]} 18... Nxe3 {[%clk 0:01:12.9]} 19. Rxe3 {[%clk 0:02:14.6]}
19... Rad8 {[%clk 0:00:38.8]} 20. Rae1 {[%clk 0:02:08.1]} 20... d5 {[%clk
0:00:36.7]} 21. Bb5 {[%clk 0:02:03]} 21... Rf8 {[%clk 0:00:26.1]} 22. Rc3 {[%clk
0:02:01]} 22... c5 {[%clk 0:00:16.6]} 23. dxc5 {[%clk 0:02:01]} 23... d4 {[%clk
0:00:17.2]} 24. Ra3 {[%clk 0:01:54.3]} 24... Bxf3 {[%clk 0:00:15]} 25. Rxf3
{[%clk 0:01:51.7]} 25... bxc5 {[%clk 0:00:15.9]} 26. Bc4 {[%clk 0:01:50.8]}
26... Rb8 {[%clk 0:00:04.7]} 27. b3 {[%clk 0:01:49.3]} 27... a5 {[%clk
0:00:04.5]} 28. a4 {[%clk 0:01:48.1]} 28... Kh8 {[%clk 0:00:04.7]} 29. Re2
{[%clk 0:01:45.3]} 29... Rfe8 {[%clk 0:00:03.1]} 30. Rxf7 {[%clk 0:01:44.3]}
30... Qg5 {[%clk 0:00:03.5]} 31. e6 {[%clk 0:01:39.1]} 31... Re7 {[%clk
0:00:04]} 32. Rxe7 {[%clk 0:01:38.3]} 32... Qxe7 {[%clk 0:00:04.9]} 33. Qe4
{[%clk 0:01:38.6]} 33... Rf8 {[%clk 0:00:04.7]} 34. Qc6 {[%clk 0:01:37.2]} 34...
d3 {[%clk 0:00:04.9]} 35. Bxd3 {[%clk 0:01:35.6]} 35... Bd4 {[%clk 0:00:05.5]}
36. Bc4 {[%clk 0:01:33]} 36... Qg5 {[%clk 0:00:04.8]} 37. Qe4 {[%clk 0:01:27.6]}
37... Qc1+ {[%clk 0:00:04.4]} 38. Kh2 {[%clk 0:01:27.7]} 38... Qh6+ {[%clk
0:00:04.9]} 39. Qh4 {[%clk 0:01:28.2]} 39... Qxh4+ {[%clk 0:00:02.9]} 40. gxh4
{[%clk 0:01:29.1]} 40... Re8 {[%clk 0:00:02.6]} 41. f3 {[%clk 0:01:26.4]} 41...
Kg7 {[%clk 0:00:03.5]} 42. g4 {[%clk 0:01:25.3]} 42... h6 {[%clk 0:00:02.6]} 43.
g5 {[%clk 0:01:24.5]} 43... hxg5 {[%clk 0:00:02.8]} 44. hxg5 {[%clk 0:01:25.4]}
1-0

[Event "Early-Titled-Tuesday-Blitz-April-23-2024"]
[Site "Chess.com"]
[Date "2024.04.23"]
[Round "4"]
[White "LawrenceTrent"]
[Black "cthulhuuu"]
[Result "1-0"]
[WhiteElo "2711"]
[BlackElo "2487"]
[TimeControl "180+1"]
[EndTime "8:39:02 PDT"]
[Termination "LawrenceTrent won by resignation"]

1. Nc3 {[%clk 0:02:59.1]} 1... Nf6 {[%clk 0:02:58.9]} 2. d4 {[%clk 0:02:58.8]}
2... g6 {[%clk 0:02:58.2]} 3. e4 {[%clk 0:02:46.4]} 3... d6 {[%clk 0:02:58.4]}
4. Bg5 {[%clk 0:02:46.9]} 4... Bg7 {[%clk 0:02:57.6]} 5. e5 {[%clk 0:02:47.3]}
5... dxe5 {[%clk 0:02:51.7]} 6. dxe5 {[%clk 0:02:48.2]} 6... Qxd1+ {[%clk
0:02:51.8]} 7. Rxd1 {[%clk 0:02:47.8]} 7... Nfd7 {[%clk 0:02:42.2]} 8. Nd5
{[%clk 0:02:47.9]} 8... Bxe5 {[%clk 0:02:38.1]} 9. Nf3 {[%clk 0:02:48.4]} 9...
Bd6 {[%clk 0:02:36.4]} 10. Bxe7 {[%clk 0:02:48.6]} 10... Bxe7 {[%clk 0:02:31.1]}
11. Nxc7+ {[%clk 0:02:47.1]} 11... Kd8 {[%clk 0:02:30.8]} 12. Nxa8 {[%clk
0:02:48]} 12... b6 {[%clk 0:02:29]} 13. Ne5 {[%clk 0:02:44.3]} 13... Bb4+ {[%clk
0:02:19.4]} 14. c3 {[%clk 0:02:42]} 14... Re8 {[%clk 0:02:19.2]} 15. f4 {[%clk
0:02:35.1]} 15... f6 {[%clk 0:02:10.9]} 16. cxb4 {[%clk 0:02:29.4]} 16... fxe5
{[%clk 0:02:10.8]} 17. f5 {[%clk 0:02:13.7]} 17... gxf5 {[%clk 0:02:06.8]} 18.
Bc4 {[%clk 0:02:13.4]} 18... Bb7 {[%clk 0:02:04.8]} 19. Bd5 {[%clk 0:02:13.6]}
19... Bxd5 {[%clk 0:01:27.5]} 20. Rxd5 {[%clk 0:02:10]} 20... Kc8 {[%clk
0:01:27.9]} 21. O-O {[%clk 0:02:02.6]} 21... Kb7 {[%clk 0:01:25.2]} 22. Rxf5
{[%clk 0:02:02.5]} 22... Re7 {[%clk 0:01:13.5]} 23. Nxb6 {[%clk 0:01:58.8]}
23... axb6 {[%clk 0:01:10.6]} 24. b5 {[%clk 0:01:55.1]} 24... e4 {[%clk
0:00:59]} 25. Kf2 {[%clk 0:01:55.1]} 25... Nc5 {[%clk 0:00:51.3]} 26. Ke3 {[%clk
0:01:52.4]} 26... Nbd7 {[%clk 0:00:41.1]} 27. Rf4 {[%clk 0:01:42]} 27... Nd3
{[%clk 0:00:37.8]} 28. Rxe4 {[%clk 0:01:32.6]} 28... Rxe4+ {[%clk 0:00:37.5]}
29. Kxe4 {[%clk 0:01:33.1]} 29... Nf6+ {[%clk 0:00:38]} 30. Kxd3 {[%clk
0:01:33.7]} 30... Nxd5 {[%clk 0:00:38.6]} 31. Ke4 {[%clk 0:01:32.7]} 31... Nc7
{[%clk 0:00:14.8]} 32. a4 {[%clk 0:01:32.3]} 32... Ne6 {[%clk 0:00:15]} 33. b4
{[%clk 0:01:28]} 33... Kc7 {[%clk 0:00:14.2]} 34. Ke5 {[%clk 0:01:28.2]} 34...
Kd7 {[%clk 0:00:14.4]} 35. a5 {[%clk 0:01:28]} 35... bxa5 {[%clk 0:00:12]} 36.
bxa5 {[%clk 0:01:28.1]} 36... Nd8 {[%clk 0:00:07.3]} 37. a6 {[%clk 0:01:26.6]}
37... Kc7 {[%clk 0:00:07.5]} 38. Kf6 {[%clk 0:01:26.4]} 38... Kb6 {[%clk
0:00:07.8]} 39. Ke7 {[%clk 0:01:26]} 39... Nb7 {[%clk 0:00:02.1]} 40. axb7
{[%clk 0:01:25.4]} 1-0

[Event "Early-Titled-Tuesday-Blitz-April-23-2024"]
[Site "Chess.com"]
[Date "2024.04.23"]
[Round "4"]
[White "Witik"]
[Black "jaskol95"]
[Result "1-0"]
[WhiteElo "2764"]
[BlackElo "2560"]
[TimeControl "180+1"]
[EndTime "8:39:04 PDT"]
[Termination "Witik won by checkmate"]

1. d4 {[%clk 0:02:59.4]} 1... e6 {[%clk 0:02:57.7]} 2. Nf3 {[%clk 0:02:50.2]}
2... Nf6 {[%clk 0:02:56.6]} 3. c4 {[%clk 0:02:46.1]} 3... d5 {[%clk 0:02:53.8]}
4. g3 {[%clk 0:02:45.8]} 4... dxc4 {[%clk 0:02:51.5]} 5. Bg2 {[%clk 0:02:45.6]}
5... Bb4+ {[%clk 0:02:52]} 6. Bd2 {[%clk 0:02:45.4]} 6... Be7 {[%clk 0:02:50.5]}
7. Qc2 {[%clk 0:02:32.1]} 7... O-O {[%clk 0:02:48.8]} 8. Qxc4 {[%clk 0:02:30.5]}
8... Bd7 {[%clk 0:02:42.6]} 9. Ne5 {[%clk 0:02:27]} 9... Bc6 {[%clk 0:02:41.6]}
10. Nxc6 {[%clk 0:02:26.2]} 10... Nxc6 {[%clk 0:02:42.5]} 11. e3 {[%clk
0:02:19.1]} 11... Qd7 {[%clk 0:02:37.3]} 12. O-O {[%clk 0:02:14.4]} 12... Rfd8
{[%clk 0:02:34.3]} 13. Rc1 {[%clk 0:01:52.1]} 13... Nd5 {[%clk 0:02:32.4]} 14.
Nc3 {[%clk 0:01:48.2]} 14... Nb6 {[%clk 0:02:23.2]} 15. Qe2 {[%clk 0:01:30.7]}
15... a6 {[%clk 0:02:21]} 16. Be1 {[%clk 0:01:12.1]} 16... Rab8 {[%clk
0:02:19.9]} 17. Ne4 {[%clk 0:01:11.3]} 17... Nd5 {[%clk 0:02:12.2]} 18. a3
{[%clk 0:01:05.9]} 18... Bd6 {[%clk 0:02:00.2]} 19. Rc2 {[%clk 0:01:04.2]} 19...
Nce7 {[%clk 0:01:58.8]} 20. Rac1 {[%clk 0:01:03.1]} 20... c6 {[%clk 0:01:59.3]}
21. Nxd6 {[%clk 0:01:00.3]} 21... Qxd6 {[%clk 0:01:59.2]} 22. e4 {[%clk
0:00:59.4]} 22... Nb6 {[%clk 0:01:59]} 23. Ba5 {[%clk 0:00:46.7]} 23... Nec8
{[%clk 0:01:49.3]} 24. Qe3 {[%clk 0:00:29.9]} 24... Re8 {[%clk 0:01:31]} 25. h4
{[%clk 0:00:22.8]} 25... Nd7 {[%clk 0:01:28.9]} 26. Qd2 {[%clk 0:00:16.8]} 26...
Qe7 {[%clk 0:01:24.6]} 27. d5 {[%clk 0:00:16.6]} 27... exd5 {[%clk 0:01:21.2]}
28. exd5 {[%clk 0:00:17.1]} 28... cxd5 {[%clk 0:01:17.4]} 29. Rc7 {[%clk
0:00:13.3]} 29... b6 {[%clk 0:01:08.3]} 30. Bb4 {[%clk 0:00:12.6]} 30... Qe6
{[%clk 0:01:01.8]} 31. Bxd5 {[%clk 0:00:12.4]} 31... Qh3 {[%clk 0:01:02.5]} 32.
Bg2 {[%clk 0:00:11.5]} 32... Qf5 {[%clk 0:01:01.9]} 33. Qxd7 {[%clk 0:00:11]}
33... Qg6 {[%clk 0:00:59.7]} 34. Rxc8 {[%clk 0:00:07.9]} 34... Rbxc8 {[%clk
0:00:58.2]} 35. Rxc8 {[%clk 0:00:07.7]} 35... Qb1+ {[%clk 0:00:59]} 36. Kh2
{[%clk 0:00:07.6]} 36... Qe1 {[%clk 0:00:59.7]} 37. Qxe8+ {[%clk 0:00:07.7]}
37... Qxe8 {[%clk 0:00:59.5]} 38. Rxe8# {[%clk 0:00:08.6]} 1-0

[Event "Early-Titled-Tuesday-Blitz-April-23-2024"]
[Site "Chess.com"]
[Date "2024.04.23"]
[Round "4"]
[White "h4parah5"]
[Black "Kiborg95"]
[Result "1-0"]
[WhiteElo "3040"]
[BlackElo "2843"]
[TimeControl "180+1"]
[EndTime "8:39:06 PDT"]
[Termination "h4parah5 won by resignation"]

1. d4 {[%clk 0:03:00.9]} 1... d6 {[%clk 0:02:52.8]} 2. Nf3 {[%clk 0:02:59.7]}
2... Nf6 {[%clk 0:02:47.4]} 3. c4 {[%clk 0:02:50.8]} 3... Nbd7 {[%clk
0:02:46.7]} 4. Nc3 {[%clk 0:02:49.7]} 4... e5 {[%clk 0:02:47.4]} 5. Bg5 {[%clk
0:02:49.2]} 5... h6 {[%clk 0:02:41.3]} 6. Bh4 {[%clk 0:02:45]} 6... g5 {[%clk
0:02:39.7]} 7. Bg3 {[%clk 0:02:45.1]} 7... Nh5 {[%clk 0:02:40.2]} 8. e3 {[%clk
0:02:44.8]} 8... Bg7 {[%clk 0:02:39.5]} 9. Qc2 {[%clk 0:02:33.2]} 9... O-O
{[%clk 0:02:31.5]} 10. O-O-O {[%clk 0:02:27.7]} 10... exd4 {[%clk 0:02:31.5]}
11. Nxd4 {[%clk 0:02:25.7]} 11... Nc5 {[%clk 0:02:32]} 12. Bd3 {[%clk
0:02:19.5]} 12... Nxd3+ {[%clk 0:02:17.7]} 13. Qxd3 {[%clk 0:02:20.4]} 13... f5
{[%clk 0:02:18.3]} 14. f3 {[%clk 0:02:08]} 14... Nxg3 {[%clk 0:02:08.1]} 15.
hxg3 {[%clk 0:02:08.9]} 15... c6 {[%clk 0:02:08.6]} 16. Kb1 {[%clk 0:02:01.3]}
16... Qf6 {[%clk 0:02:04.9]} 17. e4 {[%clk 0:01:55.2]} 17... fxe4 {[%clk
0:01:14.7]} 18. Nxe4 {[%clk 0:01:56.1]} 18... Qe5 {[%clk 0:01:15.1]} 19. Qc2
{[%clk 0:01:35.8]} 19... d5 {[%clk 0:01:14.4]} 20. cxd5 {[%clk 0:01:28.1]} 20...
cxd5 {[%clk 0:01:15.3]} 21. Nc3 {[%clk 0:01:21.7]} 21... Qxg3 {[%clk 0:01:04.5]}
22. Nxd5 {[%clk 0:01:20]} 22... Rf7 {[%clk 0:01:02.7]} 23. Qe4 {[%clk
0:00:27.7]} 23... Bd7 {[%clk 0:00:34.1]} 24. Ne7+ {[%clk 0:00:27.6]} 24... Kf8
{[%clk 0:00:34.6]} 25. Ndf5 {[%clk 0:00:23.8]} 25... Bxf5 {[%clk 0:00:20.7]} 26.
Nxf5 {[%clk 0:00:23.6]} 26... Re8 {[%clk 0:00:19.1]} 27. Nxg3 {[%clk 0:00:22.5]}
1-0

[Event "Early-Titled-Tuesday-Blitz-April-23-2024"]
[Site "Chess.com"]
[Date "2024.04.23"]
[Round "4"]
[White "Attacker88"]
[Black "Meri-Arabidze"]
[Result "0-1"]
[WhiteElo "2381"]
[BlackElo "2666"]
[TimeControl "180+1"]
[EndTime "8:39:07 PDT"]
[Termination "Meri-Arabidze won on time"]

1. e4 {[%clk 0:02:59.4]} 1... c5 {[%clk 0:03:00.2]} 2. Nf3 {[%clk 0:02:59.1]}
2... e6 {[%clk 0:03:00.8]} 3. d4 {[%clk 0:02:58.8]} 3... cxd4 {[%clk 0:03:01.7]}
4. Nxd4 {[%clk 0:02:58.9]} 4... Nc6 {[%clk 0:03:02]} 5. Nc3 {[%clk 0:02:59.1]}
5... a6 {[%clk 0:03:01.6]} 6. Be2 {[%clk 0:02:59.4]} 6... Qc7 {[%clk 0:03:00.8]}
7. O-O {[%clk 0:02:59.4]} 7... Nf6 {[%clk 0:03:01.4]} 8. Be3 {[%clk 0:02:58.9]}
8... Be7 {[%clk 0:03:01.5]} 9. f4 {[%clk 0:02:58.7]} 9... d6 {[%clk 0:03:02.1]}
10. Kh1 {[%clk 0:02:58.7]} 10... O-O {[%clk 0:03:02]} 11. a4 {[%clk 0:02:58.4]}
11... Bd7 {[%clk 0:02:59.4]} 12. Nb3 {[%clk 0:02:57.7]} 12... Na5 {[%clk
0:02:59.7]} 13. e5 {[%clk 0:02:45.2]} 13... Ne8 {[%clk 0:02:57.2]} 14. Nxa5
{[%clk 0:02:10]} 14... Qxa5 {[%clk 0:02:58.1]} 15. Ne4 {[%clk 0:02:08.6]} 15...
Qc7 {[%clk 0:02:49.3]} 16. Bd4 {[%clk 0:02:00.6]} 16... Bc6 {[%clk 0:02:45.6]}
17. Bd3 {[%clk 0:01:51.7]} 17... Bxe4 {[%clk 0:02:27.4]} 18. Bxe4 {[%clk
0:01:51.6]} 18... d5 {[%clk 0:02:27.8]} 19. Bd3 {[%clk 0:01:50.3]} 19... g6
{[%clk 0:02:28.1]} 20. g4 {[%clk 0:01:39.6]} 20... Bc5 {[%clk 0:02:28.2]} 21.
Bc3 {[%clk 0:01:31.3]} 21... Ng7 {[%clk 0:02:17.6]} 22. Qe2 {[%clk 0:01:04.5]}
22... Rac8 {[%clk 0:02:08.7]} 23. f5 {[%clk 0:00:51.7]} 23... exf5 {[%clk
0:01:59.1]} 24. gxf5 {[%clk 0:00:51.6]} 24... d4 {[%clk 0:01:51.5]} 25. Bd2
{[%clk 0:00:47.8]} 25... Rfe8 {[%clk 0:01:48]} 26. Rae1 {[%clk 0:00:47.3]} 26...
Qc6+ {[%clk 0:01:38.1]} 27. Be4 {[%clk 0:00:22.2]} 27... Qc7 {[%clk 0:01:11]}
28. e6 {[%clk 0:00:20.4]} 28... gxf5 {[%clk 0:01:00.2]} 29. Bxf5 {[%clk
0:00:09.4]} 29... Nxf5 {[%clk 0:00:59.4]} 30. Qg4+ {[%clk 0:00:03.2]} 30... Kh8
{[%clk 0:00:55.6]} 31. Qxf5 {[%clk 0:00:02.4]} 31... Qc6+ {[%clk 0:00:51.4]} 0-1

[Event "Early-Titled-Tuesday-Blitz-April-23-2024"]
[Site "Chess.com"]
[Date "2024.04.23"]
[Round "4"]
[White "DuleMudule"]
[Black "jeetjain"]
[Result "1-0"]
[WhiteElo "2829"]
[BlackElo "2603"]
[TimeControl "180+1"]
[EndTime "8:39:12 PDT"]
[Termination "DuleMudule won by resignation"]

1. d4 {[%clk 0:03:00.9]} 1... Nf6 {[%clk 0:02:52]} 2. Bg5 {[%clk 0:03:00.7]}
2... d5 {[%clk 0:02:50.9]} 3. e3 {[%clk 0:03:00.3]} 3... c5 {[%clk 0:02:49.6]}
4. Nd2 {[%clk 0:02:57.2]} 4... e6 {[%clk 0:02:46.9]} 5. c3 {[%clk 0:02:55.8]}
5... Nc6 {[%clk 0:02:45.6]} 6. f4 {[%clk 0:02:55.6]} 6... h6 {[%clk 0:02:40.1]}
7. Bh4 {[%clk 0:02:55.2]} 7... Be7 {[%clk 0:02:38.3]} 8. Bxf6 {[%clk 0:02:52.6]}
8... Bxf6 {[%clk 0:02:37.7]} 9. Bd3 {[%clk 0:02:53.1]} 9... b6 {[%clk
0:02:30.4]} 10. Ngf3 {[%clk 0:02:53.1]} 10... a5 {[%clk 0:02:28.2]} 11. Qe2
{[%clk 0:02:47.3]} 11... c4 {[%clk 0:02:26.9]} 12. Bc2 {[%clk 0:02:46.6]} 12...
Bb7 {[%clk 0:02:24]} 13. h4 {[%clk 0:02:44.2]} 13... h5 {[%clk 0:02:21.5]} 14.
Ng5 {[%clk 0:02:41]} 14... Bxg5 {[%clk 0:02:17.1]} 15. hxg5 {[%clk 0:02:41.5]}
15... g6 {[%clk 0:02:16.9]} 16. g4 {[%clk 0:02:37.2]} 16... h4 {[%clk
0:02:16.9]} 17. Qf2 {[%clk 0:02:33.9]} 17... h3 {[%clk 0:02:15.2]} 18. Qg3
{[%clk 0:02:30.7]} 18... b5 {[%clk 0:02:12.1]} 19. Rxh3 {[%clk 0:02:28.6]} 19...
Rxh3 {[%clk 0:02:13]} 20. Qxh3 {[%clk 0:02:29.1]} 20... Qe7 {[%clk 0:02:13.9]}
21. Ke2 {[%clk 0:02:24]} 21... b4 {[%clk 0:02:09.8]} 22. Ba4 {[%clk 0:02:22.2]}
22... bxc3 {[%clk 0:02:08.8]} 23. bxc3 {[%clk 0:02:23.1]} 23... Qa3 {[%clk
0:02:08.7]} 24. Rb1 {[%clk 0:02:06.1]} 24... O-O-O {[%clk 0:01:58.7]} 25. Bxc6
{[%clk 0:01:52.4]} 25... Bxc6 {[%clk 0:01:58.8]} 26. Qh7 {[%clk 0:01:42.5]}
26... Qxc3 {[%clk 0:01:51.9]} 27. Qxf7 {[%clk 0:01:26.6]} 27... Qd3+ {[%clk
0:01:51.6]} 28. Kf3 {[%clk 0:01:21.4]} 28... Qxd2 {[%clk 0:01:31.7]} 29. Qa7
{[%clk 0:01:17.4]} 29... Qb4 {[%clk 0:01:28.2]} 30. Rxb4 {[%clk 0:01:12.9]}
30... axb4 {[%clk 0:01:29.1]} 31. Qc5 {[%clk 0:01:11.6]} 31... Kd7 {[%clk
0:01:26]} 32. Qxb4 {[%clk 0:01:08.5]} 32... Ra8 {[%clk 0:01:24.4]} 33. a3 {[%clk
0:01:08]} 33... Ra4 {[%clk 0:01:00.4]} 34. Qc5 {[%clk 0:01:05.5]} 34... Ra8
{[%clk 0:00:58.3]} 35. f5 {[%clk 0:01:05.2]} 35... exf5 {[%clk 0:00:55.4]} 36.
gxf5 {[%clk 0:01:06.1]} 36... gxf5 {[%clk 0:00:55.6]} 37. Kf4 {[%clk 0:01:05.8]}
37... Re8 {[%clk 0:00:50.4]} 38. g6 {[%clk 0:01:05.5]} 38... Re4+ {[%clk
0:00:42.3]} 39. Kxf5 {[%clk 0:01:05.4]} 39... Rxe3 {[%clk 0:00:42.7]} 40. g7
{[%clk 0:00:58.2]} 40... Rg3 {[%clk 0:00:39.9]} 41. Qf8 {[%clk 0:00:50.4]} 1-0

[Event "Early-Titled-Tuesday-Blitz-April-23-2024"]
[Site "Chess.com"]
[Date "2024.04.23"]
[Round "4"]
[White "Evan_Attaker"]
[Black "FLYD"]
[Result "0-1"]
[WhiteElo "2581"]
[BlackElo "2027"]
[TimeControl "180+1"]
[EndTime "8:39:12 PDT"]
[Termination "FLYD won by resignation"]

1. Nf3 {[%clk 0:03:00.9]} 1... Nf6 {[%clk 0:02:50.7]} 2. c4 {[%clk 0:02:59.7]}
2... e6 {[%clk 0:02:50.2]} 3. g3 {[%clk 0:02:58.7]} 3... d5 {[%clk 0:02:48.7]}
4. Bg2 {[%clk 0:02:58.8]} 4... Be7 {[%clk 0:02:48.3]} 5. O-O {[%clk 0:02:58.5]}
5... O-O {[%clk 0:02:47.8]} 6. d4 {[%clk 0:02:58.4]} 6... dxc4 {[%clk 0:02:48]}
7. Na3 {[%clk 0:02:58.1]} 7... Bxa3 {[%clk 0:02:34.4]} 8. bxa3 {[%clk 0:02:59]}
8... Nbd7 {[%clk 0:02:33]} 9. a4 {[%clk 0:02:59.1]} 9... a5 {[%clk 0:02:32.6]}
10. Ba3 {[%clk 0:02:58.9]} 10... Re8 {[%clk 0:02:31.4]} 11. Qc2 {[%clk
0:02:52.1]} 11... Nb6 {[%clk 0:02:31.2]} 12. Bc5 {[%clk 0:02:52.2]} 12... Nfd5
{[%clk 0:02:19.7]} 13. e4 {[%clk 0:02:35.7]} 13... Nb4 {[%clk 0:02:19.7]} 14.
Qe2 {[%clk 0:02:35.5]} 14... Nxa4 {[%clk 0:02:15.7]} 15. Qxc4 {[%clk 0:02:34.1]}
15... Nxc5 {[%clk 0:02:13.8]} 16. dxc5 {[%clk 0:02:35]} 16... Qd3 {[%clk
0:02:09]} 17. Qxd3 {[%clk 0:02:10.5]} 17... Nxd3 {[%clk 0:02:09.9]} 18. c6
{[%clk 0:02:11.2]} 18... bxc6 {[%clk 0:02:08.7]} 19. Rfd1 {[%clk 0:02:11]} 19...
Ba6 {[%clk 0:02:08.1]} 20. Bf1 {[%clk 0:01:35.5]} 20... Red8 {[%clk 0:02:08.2]}
21. Rab1 {[%clk 0:01:26.2]} 21... c5 {[%clk 0:02:03.6]} 22. Bxd3 {[%clk
0:01:25.2]} 22... Bxd3 {[%clk 0:02:01.3]} 23. Rbc1 {[%clk 0:01:24.3]} 23... Bxe4
{[%clk 0:01:59]} 24. Nd2 {[%clk 0:01:23.7]} 24... Bc6 {[%clk 0:01:46]} 25. Nc4
{[%clk 0:01:15.7]} 25... Rxd1+ {[%clk 0:01:44]} 26. Rxd1 {[%clk 0:01:16.6]}
26... Bd5 {[%clk 0:01:42.2]} 27. Ne3 {[%clk 0:01:15.8]} 27... c6 {[%clk
0:01:40.7]} 28. Rc1 {[%clk 0:01:14.6]} 28... Bxa2 {[%clk 0:01:38]} 29. Rxc5
{[%clk 0:01:14.8]} 29... Bd5 {[%clk 0:01:38.4]} 30. Rc3 {[%clk 0:01:14.5]} 30...
f6 {[%clk 0:01:33.3]} 31. f4 {[%clk 0:01:11.9]} 31... Kf7 {[%clk 0:01:30.1]} 32.
Kf2 {[%clk 0:01:12]} 32... a4 {[%clk 0:01:28.5]} 33. Nc2 {[%clk 0:01:12.4]}
33... Ke7 {[%clk 0:01:26.3]} 34. Ke3 {[%clk 0:01:12.7]} 34... Kd6 {[%clk
0:01:26.4]} 35. g4 {[%clk 0:01:09.2]} 35... Rb8 {[%clk 0:01:24]} 36. Na1 {[%clk
0:00:54.3]} 36... Rb1 {[%clk 0:01:17.5]} 37. Ra3 {[%clk 0:00:53.9]} 37... Bb3
{[%clk 0:01:13.8]} 38. h4 {[%clk 0:00:43.7]} 38... Kc5 {[%clk 0:01:10.6]} 39.
Nxb3+ {[%clk 0:00:34.5]} 39... Rxb3+ {[%clk 0:01:11.5]} 40. Rxb3 {[%clk
0:00:35]} 40... axb3 {[%clk 0:01:12.4]} 41. Kd3 {[%clk 0:00:35.7]} 41... Kd5
{[%clk 0:01:08.2]} 42. g5 {[%clk 0:00:34.7]} 42... fxg5 {[%clk 0:01:04.6]} 43.
fxg5 {[%clk 0:00:35.6]} 43... c5 {[%clk 0:01:02.9]} 44. h5 {[%clk 0:00:36.5]}
44... c4+ {[%clk 0:01:02.2]} 45. Kc3 {[%clk 0:00:36.4]} 45... Ke5 {[%clk
0:01:01.9]} 46. g6 {[%clk 0:00:37.3]} 46... h6 {[%clk 0:00:58.5]} 47. Kxc4
{[%clk 0:00:37.3]} 47... b2 {[%clk 0:00:58.3]} 48. Kb3 {[%clk 0:00:38.2]} 48...
b1=Q+ {[%clk 0:00:58.5]} 49. Ka3 {[%clk 0:00:39.1]} 49... Kd5 {[%clk 0:00:55.6]}
0-1